[Event "Titled Tuesday Blitz November 22 Late 2022"]
[White "Gutkin, Ilya"]
[Black "Jeet, Jain"]
[WhiteFideId "16203470"]
[BlackFideId "5073022"]
[WhiteElo "2265"]
[BlackElo "2067"]
[Result "1-0"]
[Round "05"]
[TimeControl "180+1"]
[Date "2022.11.23"]
[WhiteClock "0:00:10"]
[BlackClock "0:00:36"]

1. Nf3 {[%clk 0:02:04]}  Nf6 {[%clk 0:02:49]} 2. g3 {[%clk 0:02:05]}  g6 {[%clk 0:02:49]} 3. b3 {[%clk 0:02:05]}  Bg7 {[%clk 0:02:50]} 4. Bb2 {[%clk 0:02:06]}  O-O {[%clk 0:02:50]} 5. Bg2 {[%clk 0:02:07]}  d6 {[%clk 0:02:51]} 6. d4 {[%clk 0:02:07]}  Nbd7 {[%clk 0:02:51]} 7. O-O {[%clk 0:02:07]}  c6 {[%clk 0:02:50]} 8. Nbd2 {[%clk 0:02:07]}  Re8 {[%clk 0:02:48]} 9. e4 {[%clk 0:02:07]}  e5 {[%clk 0:02:48]} 10. Re1 {[%clk 0:02:06]}  Qc7 {[%clk 0:02:46]} 11. Nc4 {[%clk 0:02:05]}  b5 {[%clk 0:02:44]} 12. dxe5 {[%clk 0:02:05]}  bxc4 {[%clk 0:02:33]} 13. exf6 {[%clk 0:02:05]}  Nxf6 {[%clk 0:02:33]} 14. e5 {[%clk 0:02:05]}  dxe5 {[%clk 0:02:28]} 15. Bxe5 {[%clk 0:02:05]}  Qa5 {[%clk 0:02:17]} 16. Qd4 {[%clk 0:01:56]}  Nh5 {[%clk 0:01:51]} 17. Bxg7 {[%clk 0:01:53]}  Rxe1+ {[%clk 0:01:51]} 18. Rxe1 {[%clk 0:01:48]}  Nxg7 {[%clk 0:01:51]} 19. Re5 {[%clk 0:01:42]}  Qc7 {[%clk 0:01:46]} 20. Qxc4 {[%clk 0:01:33]}  Be6 {[%clk 0:01:46]} 21. Qc3 {[%clk 0:01:33]}  Rd8 {[%clk 0:01:42]} 22. Re1 {[%clk 0:01:31]}  Bd5 {[%clk 0:01:35]} 23. Ng5 {[%clk 0:01:20]}  Bxg2 {[%clk 0:01:30]} 24. Kxg2 {[%clk 0:01:21]}  h6 {[%clk 0:01:29]} 25. Ne4 {[%clk 0:01:20]}  Nh5 {[%clk 0:01:23]} 26. Nf6+ {[%clk 0:01:17]}  Nxf6 {[%clk 0:01:23]} 27. Qxf6 {[%clk 0:01:18]}  Qd7 {[%clk 0:01:10]} 28. c4 {[%clk 0:01:09]}  Re8 {[%clk 0:01:02]} 29. Rxe8+ {[%clk 0:01:02]}  Qxe8 {[%clk 0:01:03]} 30. Qd4 {[%clk 0:01:02]}  Qe7 {[%clk 0:00:59]} 31. c5 {[%clk 0:00:56]}  Kh7 {[%clk 0:00:53]} 32. h4 {[%clk 0:00:53]}  h5 {[%clk 0:00:53]} 33. b4 {[%clk 0:00:47]}  Qe2 {[%clk 0:00:53]} 34. a4 {[%clk 0:00:42]}  Qa2 {[%clk 0:00:50]} 35. b5 {[%clk 0:00:36]}  Qe6 {[%clk 0:00:46]} 36. b6 {[%clk 0:00:32]}  axb6 {[%clk 0:00:42]} 37. cxb6 {[%clk 0:00:33]}  c5 {[%clk 0:00:43]} 38. Qxc5 {[%clk 0:00:30]}  Qe4+ {[%clk 0:00:43]} 39. Kh2 {[%clk 0:00:30]}  Qxa4 {[%clk 0:00:40]} 40. b7 {[%clk 0:00:22]}  Qb3 {[%clk 0:00:40]} 41. Qc7 {[%clk 0:00:17]}  Qf3 {[%clk 0:00:39]} 42. Qb6 {[%clk 0:00:08]}  g5 {[%clk 0:00:31]} 43. b8=Q {[%clk 0:00:08]}  gxh4 {[%clk 0:00:32]} 44. Qf4 {[%clk 0:00:07]}  hxg3+ {[%clk 0:00:33]} 45. Qxg3 {[%clk 0:00:07]}  Qf5 {[%clk 0:00:32]} 46. Qd4 {[%clk 0:00:06]}  f6 {[%clk 0:00:31]} 47. Qgd3 {[%clk 0:00:06]}  Kg6 {[%clk 0:00:31]} 48. Qxf5+ {[%clk 0:00:06]}  Kxf5 {[%clk 0:00:32]} 49. Kg3 {[%clk 0:00:07]}  Kg5 {[%clk 0:00:32]} 50. Qf4+ {[%clk 0:00:06]}  Kg6 {[%clk 0:00:33]} 51. Kh4 {[%clk 0:00:07]}  Kf7 {[%clk 0:00:33]} 52. Kxh5 {[%clk 0:00:07]}  Ke6 {[%clk 0:00:34]} 53. Kg6 {[%clk 0:00:08]}  Kd5 {[%clk 0:00:35]} 54. Kxf6 {[%clk 0:00:08]}  Kc5 {[%clk 0:00:35]} 55. Qd2 {[%clk 0:00:08]}  Kb5 {[%clk 0:00:36]} 56. Qc3 {[%clk 0:00:08]}  Ka4 {[%clk 0:00:37]} 57. Qb2 {[%clk 0:00:08]}  Ka5 {[%clk 0:00:36]} 58. Ke6 {[%clk 0:00:09]}  Ka6 {[%clk 0:00:34]} 59. Kd6 {[%clk 0:00:10]}  Ka5 {[%clk 0:00:35]} 60. Kc5 {[%clk 0:00:10]}  Ka6 {[%clk 0:00:36]} 61. Qb6# {[%clk 0:00:10]} 1-0


[Site "https://www.chess.com"]

[Event "Titled Tuesday Blitz November 22 Late 2022"]
[White "Ibadov, Dashgyn"]
[Black "Sargsyan, Anna M."]
[WhiteFideId "24107514"]
[BlackFideId "13308130"]
[WhiteElo "2208"]
[BlackElo "2284"]
[Result "0-1"]
[Round "05"]
[TimeControl "180+1"]
[Date "2022.11.23"]
[WhiteClock "0:00:01"]
[BlackClock "0:00:27"]

1. d4 {[%clk 0:03:00]}  d5 {[%clk 0:02:58]} 2. c4 {[%clk 0:03:00]}  c6 {[%clk 0:02:59]} 3. cxd5 {[%clk 0:02:59]}  cxd5 {[%clk 0:03:00]} 4. Nc3 {[%clk 0:02:58]}  e5 {[%clk 0:03:00]} 5. dxe5 {[%clk 0:02:55]}  d4 {[%clk 0:03:01]} 6. Nb1 {[%clk 0:02:45]}  Qa5+ {[%clk 0:03:01]} 7. Nd2 {[%clk 0:02:37]}  Nc6 {[%clk 0:02:59]} 8. Nf3 {[%clk 0:02:36]}  Bg4 {[%clk 0:03:00]} 9. Qb3 {[%clk 0:01:55]}  Rc8 {[%clk 0:02:59]} 10. h3 {[%clk 0:01:38]}  Be6 {[%clk 0:02:55]} 11. Qd1 {[%clk 0:01:27]}  Nb4 {[%clk 0:02:51]} 12. Nxd4 {[%clk 0:01:26]}  Qxe5 {[%clk 0:02:45]} 13. N2f3 {[%clk 0:01:22]}  Qe4 {[%clk 0:02:30]} 14. e3 {[%clk 0:01:16]}  Nf6 {[%clk 0:02:16]} 15. Bb5+ {[%clk 0:01:15]}  Bd7 {[%clk 0:02:15]} 16. Bxd7+ {[%clk 0:01:13]}  Nxd7 {[%clk 0:02:16]} 17. O-O {[%clk 0:01:12]}  Be7 {[%clk 0:02:10]} 18. a3 {[%clk 0:01:07]}  Nd3 {[%clk 0:02:07]} 19. Qa4 {[%clk 0:00:29]}  a6 {[%clk 0:02:00]} 20. Rd1 {[%clk 0:00:22]}  Nc5 {[%clk 0:01:51]} 21. Qa5 {[%clk 0:00:13]}  O-O {[%clk 0:01:49]} 22. Bd2 {[%clk 0:00:11]}  b6 {[%clk 0:01:49]} 23. Qc3 {[%clk 0:00:08]}  Nd3 {[%clk 0:01:43]} 24. Qb3 {[%clk 0:00:07]}  N7c5 {[%clk 0:01:44]} 25. Qa2 {[%clk 0:00:05]}  Bh4 {[%clk 0:01:39]} 26. Rf1 {[%clk 0:00:04]}  Bxf2+ {[%clk 0:01:18]} 27. Rxf2 {[%clk 0:00:05]}  Nxf2 {[%clk 0:01:18]} 28. Kxf2 {[%clk 0:00:06]}  Qd3 {[%clk 0:01:19]} 29. Bc3 {[%clk 0:00:05]}  Ne4+ {[%clk 0:01:19]} 30. Kg1 {[%clk 0:00:05]}  Qxe3+ {[%clk 0:01:19]} 31. Kh2 {[%clk 0:00:05]}  Qf4+ {[%clk 0:01:18]} 32. Kh1 {[%clk 0:00:05]}  Rfe8 {[%clk 0:01:12]} 33. Qd5 {[%clk 0:00:04]}  Rcd8 {[%clk 0:01:04]} 34. Qb7 {[%clk 0:00:03]}  h5 {[%clk 0:00:56]} 35. Qxb6 {[%clk 0:00:03]}  h4 {[%clk 0:00:57]} 36. Ne2 {[%clk 0:00:02]}  Qf5 {[%clk 0:00:46]} 37. Ned4 {[%clk 0:00:02]}  Ng3+ {[%clk 0:00:42]} 38. Kh2 {[%clk 0:00:02]}  Qf4 {[%clk 0:00:43]} 39. Kg1 {[%clk 0:00:02]}  Rd6 {[%clk 0:00:33]} 40. Qc5 {[%clk 0:00:01]}  Rg6 {[%clk 0:00:33]} 41. Qc6 {[%clk 0:00:01]}  Rxc6 {[%clk 0:00:32]} 42. Nxc6 {[%clk 0:00:02]}  Ne2+ {[%clk 0:00:30]} 43. Kf2 {[%clk 0:00:02]}  Qg3+ {[%clk 0:00:29]} 44. Kf1 {[%clk 0:00:02]}  Nf4 {[%clk 0:00:29]} 45. Ne1 {[%clk 0:00:01]}  Rxe1+ {[%clk 0:00:27]} 0-1


[Site "https://www.chess.com"]

[Event "Titled Tuesday Blitz November 22 Late 2022"]
[White "Jarmula, Lukasz"]
[Black "Makridis, Dimitrios"]
[WhiteFideId "1160664"]
[BlackFideId "25864475"]
[WhiteElo "2357"]
[BlackElo "2272"]
[Result "1/2-1/2"]
[Round "05"]
[TimeControl "180+1"]
[Date "2022.11.22"]
[WhiteClock "0:00:07"]
[BlackClock "0:00:07"]

1. e4 {[%clk 0:03:00]}  e5 {[%clk 0:02:58]} 2. Nf3 {[%clk 0:02:58]}  Nc6 {[%clk 0:02:58]} 3. Bb5 {[%clk 0:02:57]}  Nf6 {[%clk 0:02:57]} 4. O-O {[%clk 0:02:57]}  Nxe4 {[%clk 0:02:53]} 5. d4 {[%clk 0:02:57]}  Nd6 {[%clk 0:02:48]} 6. Bxc6 {[%clk 0:02:57]}  dxc6 {[%clk 0:02:49]} 7. dxe5 {[%clk 0:02:58]}  Nf5 {[%clk 0:02:49]} 8. Qxd8+ {[%clk 0:02:58]}  Kxd8 {[%clk 0:02:50]} 9. Nc3 {[%clk 0:02:58]}  Ke8 {[%clk 0:02:49]} 10. h3 {[%clk 0:02:58]}  h6 {[%clk 0:02:49]} 11. Re1 {[%clk 0:02:51]}  Be6 {[%clk 0:02:47]} 12. g4 {[%clk 0:02:48]}  Ne7 {[%clk 0:02:45]} 13. Nd4 {[%clk 0:02:48]}  c5 {[%clk 0:02:12]} 14. Nxe6 {[%clk 0:02:23]}  fxe6 {[%clk 0:02:13]} 15. Nb5 {[%clk 0:01:55]}  Kd7 {[%clk 0:02:04]} 16. c4 {[%clk 0:01:54]}  Nc6 {[%clk 0:01:59]} 17. Bf4 {[%clk 0:01:49]}  Re8 {[%clk 0:01:47]} 18. Rad1+ {[%clk 0:01:48]}  Kc8 {[%clk 0:01:47]} 19. Kg2 {[%clk 0:01:44]}  a6 {[%clk 0:01:47]} 20. Nc3 {[%clk 0:01:43]}  Be7 {[%clk 0:01:39]} 21. Bg3 {[%clk 0:01:41]}  Nd4 {[%clk 0:01:39]} 22. f4 {[%clk 0:01:39]}  Rhf8 {[%clk 0:01:38]} 23. Ne4 {[%clk 0:01:30]}  b6 {[%clk 0:01:35]} 24. Rf1 {[%clk 0:01:20]}  Rd8 {[%clk 0:01:22]} 25. Rd2 {[%clk 0:01:17]}  Kb7 {[%clk 0:01:20]} 26. Rfd1 {[%clk 0:01:14]}  Kc6 {[%clk 0:01:16]} 27. b4 {[%clk 0:01:03]}  Rb8 {[%clk 0:01:08]} 28. a3 {[%clk 0:00:47]}  g5 {[%clk 0:00:56]} 29. fxg5 {[%clk 0:00:45]}  hxg5 {[%clk 0:00:57]} 30. Bf2 {[%clk 0:00:41]}  Rf4 {[%clk 0:00:49]} 31. Nf6 {[%clk 0:00:31]}  Bxf6 {[%clk 0:00:45]} 32. exf6 {[%clk 0:00:32]}  e5 {[%clk 0:00:45]} 33. Bg3 {[%clk 0:00:28]}  Rxf6 {[%clk 0:00:30]} 34. Bxe5 {[%clk 0:00:28]}  Re6 {[%clk 0:00:22]} 35. Bxd4 {[%clk 0:00:27]}  cxd4 {[%clk 0:00:23]} 36. Rxd4 {[%clk 0:00:28]}  Re2+ {[%clk 0:00:22]} 37. Kf3 {[%clk 0:00:26]}  Ra2 {[%clk 0:00:16]} 38. R1d3 {[%clk 0:00:25]}  Rf8+ {[%clk 0:00:16]} 39. Kg3 {[%clk 0:00:19]}  Rff2 {[%clk 0:00:15]} 40. Re4 {[%clk 0:00:17]}  Rg2+ {[%clk 0:00:15]} 41. Kf3 {[%clk 0:00:17]}  Raf2+ {[%clk 0:00:15]} 42. Ke3 {[%clk 0:00:17]}  Ra2 {[%clk 0:00:15]} 43. Re6+ {[%clk 0:00:15]}  Kb7 {[%clk 0:00:15]} 44. Kd4 {[%clk 0:00:15]}  Rac2 {[%clk 0:00:12]} 45. Re5 {[%clk 0:00:14]}  Rgf2 {[%clk 0:00:12]} 46. Rxg5 {[%clk 0:00:14]}  Rf4+ {[%clk 0:00:12]} 47. Ke5 {[%clk 0:00:14]}  Rcxc4 {[%clk 0:00:12]} 48. Rf5 {[%clk 0:00:14]}  Rfe4+ {[%clk 0:00:11]} 49. Kf6 {[%clk 0:00:14]}  Rc6+ {[%clk 0:00:11]} 50. Kg5 {[%clk 0:00:14]}  Re8 {[%clk 0:00:10]} 51. Rdf3 {[%clk 0:00:14]}  Rg8+ {[%clk 0:00:10]} 52. Kh4 {[%clk 0:00:14]}  Rc4 {[%clk 0:00:09]} 53. Kg3 {[%clk 0:00:14]}  a5 {[%clk 0:00:08]} 54. g5 {[%clk 0:00:14]}  axb4 {[%clk 0:00:08]} 55. axb4 {[%clk 0:00:14]}  Rxb4 {[%clk 0:00:09]} 56. h4 {[%clk 0:00:14]}  c5 {[%clk 0:00:09]} 57. h5 {[%clk 0:00:14]}  Rb1 {[%clk 0:00:08]} 58. g6 {[%clk 0:00:14]}  Rh1 {[%clk 0:00:08]} 59. Kg4 {[%clk 0:00:13]}  c4 {[%clk 0:00:08]} 60. Rf7+ {[%clk 0:00:13]}  Ka6 {[%clk 0:00:08]} 61. Ra3+ {[%clk 0:00:12]}  Kb5 {[%clk 0:00:08]} 62. Rf5+ {[%clk 0:00:11]}  Kb4 {[%clk 0:00:08]} 63. Ra7 {[%clk 0:00:10]}  c3 {[%clk 0:00:07]} 64. Rb7 {[%clk 0:00:09]}  c2 {[%clk 0:00:07]} 65. Rxb6+ {[%clk 0:00:09]}  Kc3 {[%clk 0:00:07]} 66. Rc6+ {[%clk 0:00:10]}  Kb2 {[%clk 0:00:06]} 67. Rb5+ {[%clk 0:00:10]}  Kc1 {[%clk 0:00:07]} 68. Rbc5 {[%clk 0:00:09]}  Rg1+ {[%clk 0:00:07]} 69. Kf5 {[%clk 0:00:09]}  Rg2 {[%clk 0:00:06]} 70. h6 {[%clk 0:00:08]}  Rf8+ {[%clk 0:00:05]} 71. Ke5 {[%clk 0:00:08]}  Rg5+ {[%clk 0:00:05]} 72. Ke4 {[%clk 0:00:07]}  Rg4+ {[%clk 0:00:06]} 73. Ke3 {[%clk 0:00:07]}  Rg3+ {[%clk 0:00:06]} 74. Ke4 {[%clk 0:00:07]}  Rg4+ {[%clk 0:00:07]} 75. Ke3 {[%clk 0:00:07]}  Rg3+ {[%clk 0:00:07]} 76. Ke4 {[%clk 0:00:07]}  Rg4+ {[%clk 0:00:07]} 1/2-1/2


[Site "https://www.chess.com"]

[Event "Titled Tuesday Blitz November 22 Late 2022"]
[White "Kilic, Eray"]
[Black "Koellner, Ruben Gideon"]
[WhiteFideId "44517173"]
[BlackFideId "12993093"]
[WhiteElo "2328"]
[BlackElo "2303"]
[Result "1-0"]
[Round "05"]
[TimeControl "180+1"]
[Date "2022.11.23"]
[WhiteClock "0:01:01"]
[BlackClock "0:00:02"]

1. e4 {[%clk 0:03:00]}  d6 {[%clk 0:02:56]} 2. d4 {[%clk 0:03:00]}  Nf6 {[%clk 0:02:55]} 3. Nc3 {[%clk 0:03:01]}  e5 {[%clk 0:02:55]} 4. Nf3 {[%clk 0:03:01]}  Nbd7 {[%clk 0:02:55]} 5. Bc4 {[%clk 0:03:01]}  Be7 {[%clk 0:02:55]} 6. O-O {[%clk 0:03:02]}  c6 {[%clk 0:02:55]} 7. Re1 {[%clk 0:03:02]}  h6 {[%clk 0:02:54]} 8. a4 {[%clk 0:03:02]}  Qc7 {[%clk 0:02:54]} 9. Ba2 {[%clk 0:03:02]}  Nf8 {[%clk 0:02:53]} 10. h3 {[%clk 0:03:01]}  g5 {[%clk 0:02:53]} 11. dxe5 {[%clk 0:02:51]}  dxe5 {[%clk 0:02:54]} 12. Nd2 {[%clk 0:02:51]}  Ng6 {[%clk 0:02:54]} 13. Nc4 {[%clk 0:02:51]}  g4 {[%clk 0:02:52]} 14. hxg4 {[%clk 0:02:49]}  Bxg4 {[%clk 0:02:53]} 15. f3 {[%clk 0:02:50]}  Be6 {[%clk 0:02:53]} 16. Ne3 {[%clk 0:02:49]}  Bc5 {[%clk 0:02:42]} 17. Bxe6 {[%clk 0:02:46]}  fxe6 {[%clk 0:02:40]} 18. Kh1 {[%clk 0:02:43]}  Rd8 {[%clk 0:02:29]} 19. Qe2 {[%clk 0:02:42]}  Qf7 {[%clk 0:02:17]} 20. Ng4 {[%clk 0:01:53]}  h5 {[%clk 0:00:41]} 21. Nxf6+ {[%clk 0:01:49]}  Qxf6 {[%clk 0:00:42]} 22. g3 {[%clk 0:01:47]}  Nf4 {[%clk 0:00:25]} 23. Bxf4 {[%clk 0:01:45]}  exf4 {[%clk 0:00:24]} 24. e5 {[%clk 0:01:45]}  Qf5 {[%clk 0:00:18]} 25. Ne4 {[%clk 0:01:45]}  Be3 {[%clk 0:00:07]} 26. Qh2 {[%clk 0:01:38]}  Qxe5 {[%clk 0:00:04]} 27. Qh4 {[%clk 0:01:35]}  Rh6 {[%clk 0:00:02]} 28. Rad1 {[%clk 0:01:28]}  Rxd1 {[%clk 0:00:01]} 29. Rxd1 {[%clk 0:01:29]}  Bd4 {[%clk 0:00:01]} 30. gxf4 {[%clk 0:01:26]}  Qg7 {[%clk 0:00:01]} 31. c3 {[%clk 0:01:24]}  Bb6 {[%clk 0:00:01]} 32. Nd6+ {[%clk 0:01:02]}  Kf8 {[%clk 0:00:02]} 33. Nc4 {[%clk 0:01:02]}  Rg6 {[%clk 0:00:02]} 34. Nxb6 {[%clk 0:01:00]}  axb6 {[%clk 0:00:02]} 35. Qd8+ {[%clk 0:01:01]}  Kf7 {[%clk 0:00:02]} 36. Rd7# {[%clk 0:01:01]} 1-0


[Site "https://www.chess.com"]

[Event "Titled Tuesday Blitz November 22 Late 2022"]
[White "Kopylov, Alexander A."]
[Black "De La Colina, Nicolas"]
[WhiteFideId "4164857"]
[BlackFideId "30946921"]
[WhiteElo "2436"]
[BlackElo "2046"]
[Result "0-1"]
[Round "05"]
[TimeControl "180+1"]
[Date "2022.11.23"]
[WhiteClock "0:00:06"]
[BlackClock "0:00:34"]

1. e4 {[%clk 0:00:17]}  c5 {[%clk 0:02:53]} 2. Nf3 {[%clk 0:00:17]}  Nc6 {[%clk 0:02:54]} 3. Bb5 {[%clk 0:00:18]}  Nf6 {[%clk 0:02:54]} 4. Nc3 {[%clk 0:00:17]}  g6 {[%clk 0:02:53]} 5. O-O {[%clk 0:00:18]}  Bg7 {[%clk 0:02:53]} 6. h3 {[%clk 0:00:18]}  O-O {[%clk 0:02:53]} 7. e5 {[%clk 0:00:18]}  Ne8 {[%clk 0:02:52]} 8. Re1 {[%clk 0:00:19]}  Nc7 {[%clk 0:02:51]} 9. Bxc6 {[%clk 0:00:19]}  dxc6 {[%clk 0:02:52]} 10. d3 {[%clk 0:00:19]}  Ne6 {[%clk 0:02:52]} 11. Be3 {[%clk 0:00:19]}  b6 {[%clk 0:02:52]} 12. Qd2 {[%clk 0:00:19]}  Nd4 {[%clk 0:02:45]} 13. Nh2 {[%clk 0:00:19]}  Bxe5 {[%clk 0:02:41]} 14. Bh6 {[%clk 0:00:19]}  Bg7 {[%clk 0:02:41]} 15. Bxg7 {[%clk 0:00:19]}  Kxg7 {[%clk 0:02:42]} 16. Ng4 {[%clk 0:00:19]}  f6 {[%clk 0:02:25]} 17. Qh6+ {[%clk 0:00:18]}  Kg8 {[%clk 0:02:25]} 18. Rac1 {[%clk 0:00:19]}  e5 {[%clk 0:02:22]} 19. Ne4 {[%clk 0:00:17]}  Qe7 {[%clk 0:02:12]} 20. c3 {[%clk 0:00:17]}  Nf5 {[%clk 0:02:11]} 21. Qd2 {[%clk 0:00:18]}  Be6 {[%clk 0:02:10]} 22. f4 {[%clk 0:00:16]}  exf4 {[%clk 0:02:00]} 23. Qxf4 {[%clk 0:00:17]}  h5 {[%clk 0:02:01]} 24. Ne3 {[%clk 0:00:16]}  Rad8 {[%clk 0:01:46]} 25. Nxf5 {[%clk 0:00:15]}  Bxf5 {[%clk 0:01:47]} 26. Re3 {[%clk 0:00:14]}  Qe5 {[%clk 0:01:38]} 27. Qxe5 {[%clk 0:00:14]}  fxe5 {[%clk 0:01:39]} 28. Rce1 {[%clk 0:00:10]}  Rd5 {[%clk 0:01:38]} 29. Ng3 {[%clk 0:00:09]}  Rxd3 {[%clk 0:01:37]} 30. Rxd3 {[%clk 0:00:09]}  Bxd3 {[%clk 0:01:37]} 31. Rxe5 {[%clk 0:00:10]}  h4 {[%clk 0:01:29]} 32. Ne4 {[%clk 0:00:08]}  Rf1+ {[%clk 0:01:10]} 33. Kh2 {[%clk 0:00:08]}  Kg7 {[%clk 0:01:10]} 34. Re7+ {[%clk 0:00:06]}  Kh6 {[%clk 0:01:11]} 35. Nd6 {[%clk 0:00:05]}  Rf2 {[%clk 0:01:03]} 36. Rxa7 {[%clk 0:00:04]}  Rxb2 {[%clk 0:01:03]} 37. Rd7 {[%clk 0:00:03]}  Bf1 {[%clk 0:01:01]} 38. Nf7+ {[%clk 0:00:03]}  Kh5 {[%clk 0:01:01]} 39. Ne5 {[%clk 0:00:02]}  Bxg2 {[%clk 0:00:59]} 40. Rh7+ {[%clk 0:00:01]}  Kg5 {[%clk 0:00:59]} 41. Nf7+ {[%clk 0:00:01]}  Kf6 {[%clk 0:00:58]} 42. Kg1 {[%clk 0:00:02]}  Bd5 {[%clk 0:00:57]} 43. Nd6 {[%clk 0:00:02]}  Rg2+ {[%clk 0:00:57]} 44. Kf1 {[%clk 0:00:02]}  Rxa2 {[%clk 0:00:58]} 45. Nc8 {[%clk 0:00:02]}  Bg2+ {[%clk 0:00:59]} 46. Ke1 {[%clk 0:00:02]}  b5 {[%clk 0:01:00]} 47. Rxh4 {[%clk 0:00:02]}  Bd5 {[%clk 0:00:58]} 48. Nd6 {[%clk 0:00:02]}  Ke5 {[%clk 0:00:57]} 49. Ne8 {[%clk 0:00:02]}  Rc2 {[%clk 0:00:56]} 50. Rg4 {[%clk 0:00:02]}  Rxc3 {[%clk 0:00:51]} 51. h4 {[%clk 0:00:03]}  Rh3 {[%clk 0:00:46]} 52. Kd2 {[%clk 0:00:02]}  b4 {[%clk 0:00:45]} 53. Rg5+ {[%clk 0:00:03]}  Ke6 {[%clk 0:00:40]} 54. Ng7+ {[%clk 0:00:03]}  Kf7 {[%clk 0:00:38]} 55. h5 {[%clk 0:00:03]}  Kxg7 {[%clk 0:00:37]} 56. Rxg6+ {[%clk 0:00:02]}  Kf7 {[%clk 0:00:38]} 57. Rh6 {[%clk 0:00:03]}  c4 {[%clk 0:00:36]} 58. Rh7+ {[%clk 0:00:03]}  Ke6 {[%clk 0:00:35]} 59. h6 {[%clk 0:00:04]}  Ke5 {[%clk 0:00:35]} 60. Rh8 {[%clk 0:00:04]}  Kd4 {[%clk 0:00:36]} 61. h7 {[%clk 0:00:05]}  Rh2+ {[%clk 0:00:36]} 62. Ke1 {[%clk 0:00:05]}  b3 {[%clk 0:00:36]} 63. Kf1 {[%clk 0:00:05]}  b2 {[%clk 0:00:35]} 64. Rb8 {[%clk 0:00:06]}  Rxh7 {[%clk 0:00:34]} 65. Rxb2 {[%clk 0:00:07]}  Rh1+ {[%clk 0:00:33]} 66. Ke2 {[%clk 0:00:06]}  Rh2+ {[%clk 0:00:34]} 0-1


[Site "https://www.chess.com"]

[Event "Titled Tuesday Blitz November 22 Late 2022"]
[White "Liu, Kelsey"]
[Black "Roque Sola, Jose Luis"]
[WhiteFideId "30944481"]
[BlackFideId "5120390"]
[WhiteElo "2313"]
[BlackElo "2117"]
[Result "0-1"]
[Round "05"]
[TimeControl "180+1"]
[Date "2022.11.23"]
[WhiteClock "0:00:05"]
[BlackClock "0:00:11"]

1. e4 {[%clk 0:02:54]}  e6 {[%clk 0:02:59]} 2. d4 {[%clk 0:02:54]}  d5 {[%clk 0:02:59]} 3. Nc3 {[%clk 0:02:53]}  Nf6 {[%clk 0:02:58]} 4. Bg5 {[%clk 0:02:52]}  dxe4 {[%clk 0:02:58]} 5. Nxe4 {[%clk 0:02:52]}  Be7 {[%clk 0:02:58]} 6. Bxf6 {[%clk 0:02:51]}  gxf6 {[%clk 0:02:58]} 7. Nf3 {[%clk 0:02:51]}  b6 {[%clk 0:02:57]} 8. Bd3 {[%clk 0:02:47]}  Bb7 {[%clk 0:02:56]} 9. c3 {[%clk 0:02:45]}  c6 {[%clk 0:02:56]} 10. Qe2 {[%clk 0:02:33]}  Qc7 {[%clk 0:02:56]} 11. O-O-O {[%clk 0:02:32]}  Nd7 {[%clk 0:02:56]} 12. Kb1 {[%clk 0:02:24]}  O-O-O {[%clk 0:02:54]} 13. Ba6 {[%clk 0:02:21]}  Kb8 {[%clk 0:02:54]} 14. Nfd2 {[%clk 0:02:15]}  f5 {[%clk 0:02:44]} 15. Ng3 {[%clk 0:02:12]}  h5 {[%clk 0:02:11]} 16. Bxb7 {[%clk 0:02:11]}  Kxb7 {[%clk 0:02:09]} 17. Nxf5 {[%clk 0:02:11]}  Bg5 {[%clk 0:01:42]} 18. Ng3 {[%clk 0:02:06]}  h4 {[%clk 0:01:40]} 19. Nge4 {[%clk 0:02:06]}  Be7 {[%clk 0:01:40]} 20. Nf3 {[%clk 0:01:53]}  Rdg8 {[%clk 0:01:34]} 21. Rhg1 {[%clk 0:01:46]}  Rg6 {[%clk 0:01:07]} 22. g3 {[%clk 0:01:32]}  hxg3 {[%clk 0:00:43]} 23. hxg3 {[%clk 0:01:25]}  Rgh6 {[%clk 0:00:38]} 24. Neg5 {[%clk 0:01:23]}  Bxg5 {[%clk 0:00:30]} 25. Nxg5 {[%clk 0:01:20]}  Nf6 {[%clk 0:00:30]} 26. Qf3 {[%clk 0:01:15]}  Qe7 {[%clk 0:00:17]} 27. Rh1 {[%clk 0:01:14]}  Rxh1 {[%clk 0:00:17]} 28. Rxh1 {[%clk 0:01:14]}  Rxh1+ {[%clk 0:00:16]} 29. Qxh1 {[%clk 0:01:15]}  Ng4 {[%clk 0:00:15]} 30. Nh3 {[%clk 0:01:00]}  Qf6 {[%clk 0:00:14]} 31. Qg2 {[%clk 0:00:51]}  Qf5+ {[%clk 0:00:14]} 32. Ka1 {[%clk 0:00:49]}  Qd3 {[%clk 0:00:14]} 33. a3 {[%clk 0:00:48]}  Qd1+ {[%clk 0:00:13]} 34. Ka2 {[%clk 0:00:49]}  a5 {[%clk 0:00:13]} 35. f3 {[%clk 0:00:32]}  Ne3 {[%clk 0:00:13]} 36. Qf2 {[%clk 0:00:24]}  Nc4 {[%clk 0:00:11]} 37. b3 {[%clk 0:00:13]}  Nd2 {[%clk 0:00:11]} 38. Qg1 {[%clk 0:00:04]}  Qxb3+ {[%clk 0:00:11]} 39. Ka1 {[%clk 0:00:05]}  Qxa3# {[%clk 0:00:11]} 0-1


[Site "https://www.chess.com"]